bitfinex/quotes_ETHUSD_20240718
["timestamp","ask_amount","ask_price","bid_price","bid_amount"]
[1721286931257,3.796914,3446.2,3446.1,0.08065007]
[1721286931866,3.45174,3446.2,3446.1,0.08065007]
[1721286932463,2.9016,3446.4,3446.1,0.08065007]
[1721286932762,2.90169,3446.3,3446.1,0.08065007]
[1721286933259,2.90174,3446.2,3446.1,0.08065007]
[1721286934253,3.482063,3446.2,3446.1,0.08065007]
[1721286934455,4.032063,3446.2,3446.1,0.08065007]
[1721286937069,6.933803,3446.2,3446.1,0.08065007]
[1721286939106,13.44668126,3446.2,3446.1,0.08065007]
[1721286939228,13.44669194,3446.2,3446.1,0.08065007]
[1721286941046,12.835543,3446.2,3446.1,0.08065007]
[1721286941245,13.44674618,3446.2,3446.1,0.08065007]
[1721286941463,9.933803,3446.2,3446.1,0.08065007]
[1721286942031,12.835543,3446.2,3446.1,0.08065007]
[1721286942757,13.44675733,3446.2,3446.1,0.08065007]
[1721286944376,13.44679422,3446.2,3446.1,0.08065007]
[1721286944546,16.34853422,3446.2,3446.1,0.08065007]
[1721286944749,2.90275,3445.0,3444.9,2.3944]
[1721286945268,2.90275,3445.0,3444.9,2.46689577]
[1721286945773,2.90266,3445.2,3444.9,2.46689577]
[1721286945948,2.90257,3445.3,3444.9,2.46689577]
[1721286946955,2.9027,3445.1,3444.9,2.46689577]
[1721286947154,2.90257,3445.3,3444.9,2.46689577]
[1721286947884,2.90262,3445.2,3444.9,2.46689577]
[1721286949357,2.9027,3445.1,3444.9,2.46689577]
[1721286949682,2.90275,3445.0,3444.9,2.46689577]
[1721286949882,2.9027,3445.1,3444.2,2.4512]
[1721286950055,2.90293,3444.8,3444.2,2.4512]
[1721286950244,3.45276,3445.0,3444.3,0.07273167]
[1721286950245,2.90301,3444.7,3444.3,0.07273167]
[1721286950585,2.90301,3444.7,3444.2,2.4512]
[1721286950890,2.90301,3444.7,3444.4,0.07273167]
[1721286951250,2.90301,3444.7,3444.5,0.07273167]
[1721286951586,2.90288,3444.9,3444.2,2.4512]
[1721286951884,2.90279,3445.0,3444.3,0.535477]
[1721286952083,0.55,3444.9,3444.3,0.535477]
[1721286952258,0.55,3444.9,3444.4,0.07273167]
[1721286952961,3.45285,3444.9,3444.4,0.07273167]
[1721286953189,3.45285,3444.9,3444.5,2.3187]
[1721286953989,3.45285,3444.9,3444.6,0.07273167]
[1721286955584,2.90253,3445.3,3444.6,0.07273167]
[1721286955888,5.90217,3445.7,3444.9,2.426]
[1721286956091,3.0,3445.6,3444.9,2.426]
[1721286956255,2.90225,3445.6,3444.9,2.426]
[1721286956454,2.90225,3445.6,3445.0,0.07273167]
[1721286957910,2.90208,3445.8,3445.0,0.07273167]
[1721286957911,2.90233,3445.5,3445.0,0.07273167]
[1721286958187,3.482771,3445.5,3445.0,0.07273167]
[1721286959504,2.90233,3445.5,3445.0,0.07273167]
[1721286960011,2.90247,3445.4,3445.0,0.07273167]
[1721286960289,2.90257,3445.3,3445.0,0.07273167]
[1721286960456,2.90233,3445.5,3445.0,0.07273167]
[1721286960658,0.55,3445.4,3444.9,2.426]
[1721286960972,3.45243,3445.4,3444.9,2.426]
[1721286961170,3.45243,3445.4,3443.1,0.50223715]
[1721286961171,2.90299,3444.8,3444.4,2.4172]
[1721286961569,2.90309,3444.6,3444.5,0.07296417]
[1721286961782,2.90321,3444.5,3443.8,2.3279]
[1721286962176,2.90335,3444.3,3443.8,2.3279]
[1721286962381,2.90321,3444.5,3443.8,2.3279]
[1721286963074,2.90328,3444.4,3443.8,2.3279]
[1721286963907,2.90309,3444.6,3443.8,2.3279]
[1721286964114,2.90335,3444.3,3443.8,2.3279]
[1721286966173,2.90322,3444.5,3443.8,2.3279]
[1721286966476,9.322,3444.7,3443.8,2.3279]
[1721286966477,7.34,3444.7,3443.8,2.3279]
[1721286966678,7.34,3444.7,3443.9,2.9036]
[1721286967470,10.24303,3444.7,3443.8,2.4758]
[1721286967665,11.557618,3444.7,3443.8,2.4758]
[1721286968270,11.557618,3444.7,3443.9,2.90368]
[1721286969342,10.24303,3444.7,3443.9,2.90368]
[1721286969545,7.34,3444.7,3444.0,2.90358]
[1721286970710,10.24302,3444.7,3443.8,5.37956]
[1721286970911,2.90302,3444.7,3443.8,5.37956]
[1721286971943,0.55,3444.6,3443.8,5.37956]
[1721286972241,2.90325,3444.5,3443.8,2.4758]
[1721286972605,2.90328,3444.4,3443.9,0.07337546]
[1721286974937,5.80661,3444.4,3443.9,0.07337546]
[1721286975341,2.90334,3444.3,3443.8,2.4758]
[1721286975650,2.90334,3444.3,3443.9,0.07337546]
[1721286976211,2.90346,3444.2,3443.9,0.07337546]
[1721286977519,2.90346,3444.2,3443.4,5.32329]
[1721286977946,2.90346,3444.2,3443.5,0.07337546]
[1721286982524,2.90328,3444.4,3443.6,2.4128]
[1721286982726,0.55,3444.3,3443.7,0.07352383]
[1721286982927,3.248402,3444.6,3443.8,2.4128]
[1721286983245,7.34,3444.7,3443.8,2.4128]
[1721286983753,7.34,3444.7,3443.9,0.07367557]
[1721286983929,7.34,3444.7,3443.9,2.97729557]
[1721286984335,7.34,3444.7,3444.1,2.90344]
[1721286984638,15.2326,3445.2,3444.1,2.90344]
[1721286984639,7.34,3445.1,3444.3,2.90333]
[1721286984956,7.34,3445.1,3444.4,0.07367557]
[1721286986055,10.2427,3445.1,3444.4,0.07367557]
[1721286986817,7.34,3445.5,3444.9,2.4333]
[1721286987060,2.90212,3445.8,3444.9,2.4333]
[1721286987225,5.357532,3445.8,3444.9,2.4333]
[1721286987422,5.357532,3445.8,3444.9,5.33613]
[1721286987621,9.322,3445.9,3445.0,2.90272]
[1721286987622,7.34,3445.9,3445.0,2.90272]
[1721286987820,7.34,3445.9,3445.0,2.97621686]
[1721286988053,7.34,3445.9,3445.0,2.90272]
[1721286988257,7.34,3445.9,3445.1,2.97612686]
[1721286988258,10.242,3445.9,3445.1,2.97612686]
[1721286988562,10.242,3445.9,3445.2,2.4333]
[1721286988855,10.85787825,3445.9,3445.3,0.07334516]
[1721286990733,2.90211,3445.8,3445.3,0.07334516]
[1721286990923,2.90211,3445.8,3445.0,2.90275]
[1721286991118,2.90211,3445.8,3445.1,0.07333842]
[1721286992431,2.90211,3445.8,3445.2,2.2641]
[1721286992765,2.90211,3445.8,3445.3,0.07289341]
[1721286992973,2.90211,3445.8,3445.2,2.2641]
[1721286993150,2.90211,3445.8,3445.3,0.07289004]
[1721286993347,2.90211,3445.8,3445.2,2.2641]
[1721286993545,2.90211,3445.8,3445.3,0.07289004]
[1721286993721,2.90211,3445.8,3445.2,2.2641]
[1721286994284,2.90211,3445.8,3445.3,0.07287656]
[1721286994784,2.90211,3445.8,3445.4,0.07287319]
[1721286994980,2.90191,3446.0,3445.4,0.07287319]
[1721286995190,10.24177,3446.2,3445.3,2.90248]
[1721286995507,0.55,3446.1,3445.5,0.07287319]
[1721286995684,0.55,3446.1,3445.3,3.709412]
[1721286995882,0.55,3446.1,3445.6,0.07287319]
[1721286996038,0.55,3446.1,3445.3,3.709412]
[1721286996551,0.55,3446.1,3445.4,0.07287319]
[1721286996968,2.90177,3446.2,3445.4,0.07287319]
[1721286997146,2.90177,3446.2,3445.4,2.90241]
[1721286997350,2.90177,3446.2,3445.5,0.07287319]
[1721286997549,2.90177,3446.2,3445.6,2.4768]
[1721286998061,2.90167,3446.3,3445.7,0.07287319]
[1721286998244,0.55,3446.2,3445.7,0.07287319]
[1721286999991,7.34,3446.6,3445.8,6.04664955]
[1721287000190,10.24141,3446.6,3445.9,0.07287319]
[1721287000559,2.90141,3446.6,3445.9,0.07287319]
[1721287001161,2.9013,3446.8,3445.9,2.97479319]
[1721287001376,0.55,3446.7,3446.0,5.2699]
[1721287001775,0.55,3446.7,3446.1,0.07287319]
[1721287001974,2.9013,3446.8,3446.1,0.07287319]
[1721287002175,2.90133,3446.7,3446.1,0.07287319]
[1721287002376,2.9015,3446.5,3446.1,0.07287319]
[1721287002663,2.9015,3446.5,3446.0,2.368]
[1721287003608,2.9015,3446.5,3446.1,0.07269123]
[1721287004061,2.9015,3446.5,3445.2,2.90254]
[1721287004062,2.90189,3446.1,3445.2,2.90254]
[1721287004266,2.90189,3446.1,3445.3,2.4707]
[1721287004464,2.90189,3446.1,3445.3,5.37319]
[1721287005167,2.90192,3446.0,3445.3,5.37319]
[1721287005668,2.90192,3446.0,3445.3,2.4707]
[1721287005895,3.482278,3446.0,3445.3,2.4707]
[1721287006299,2.90201,3445.9,3445.3,2.4707]
[1721287006487,3.45201,3445.9,3444.9,2.2566]
[1721287006684,2.90216,3445.7,3444.9,5.15944]
[1721287010814,2.90216,3445.7,3444.9,2.2566]
[1721287011104,2.90242,3445.4,3444.9,2.2566]
[1721287013117,2.90208,3445.9,3444.9,5.15943]
[1721287013412,0.55,3445.8,3444.9,5.15943]
[1721287013709,2.90208,3445.8,3444.9,5.15943]
[1721287013918,3.45201,3445.9,3445.1,2.4702]
[1721287014932,2.90208,3445.8,3445.1,2.4702]
[1721287015130,2.90218,3445.7,3445.1,2.4702]
[1721287016097,0.55,3445.9,3445.1,2.4702]
[1721287016299,2.90283,3445.0,3444.5,2.261]
[1721287016617,1.982,3445.2,3444.6,0.07057114]
[1721287016930,2.90301,3444.7,3444.6,0.07057114]
[1721287017091,2.90301,3444.7,3444.1,2.261]
[1721287017292,2.90301,3444.7,3444.6,0.07067901]
[1721287017494,2.90301,3444.7,3444.1,2.261]
[1721287017495,4.033611,3444.7,3444.1,2.261]
[1721287017695,3.483611,3444.7,3444.1,2.261]
[1721287017942,3.483611,3444.7,3444.2,0.07067901]
[1721287018604,2.90309,3444.6,3444.2,0.07067901]
[1721287019745,0.580601,3444.7,3444.2,0.07067901]
[1721287020053,2.903,3444.8,3444.2,0.07067901]
[1721287020207,0.55,3444.7,3444.2,0.07067901]
[1721287020549,10.24259,3445.2,3444.2,0.07067901]
[1721287020728,7.34,3445.2,3444.3,2.3294]
[1721287020931,1.024259,3445.1,3444.3,2.3294]
[1721287021128,2.90278,3445.0,3444.3,2.3294]
[1721287021435,2.90278,3445.0,3444.4,0.07067901]
[1721287022919,7.34,3445.2,3444.4,0.07067901]
[1721287023122,2.90273,3445.1,3444.4,0.07067901]
[1721287024640,2.90276,3445.0,3444.4,0.07067901]
[1721287025244,2.90276,3445.0,3444.3,2.3294]
[1721287026853,2.90276,3445.0,3444.4,0.07067901]
[1721287028134,10.2426,3445.2,3444.4,0.07067901]
[1721287028354,10.2426,3445.2,3444.5,2.2555]
[1721287028513,10.2426,3445.2,3444.5,2.7784519]
[1721287028514,7.34,3445.2,3444.5,2.7784519]
[1721287028718,7.34,3445.2,3444.7,2.2555]
[1721287029318,7.34,3445.2,3444.9,2.2688]
[1721287029803,7.34,3445.2,3445.0,0.07092511]
[1721287030009,7.34,3445.8,3445.0,0.59519762]
[1721287030207,2.90209,3445.8,3445.0,0.59519762]
[1721287030402,2.90209,3445.8,3445.0,0.52427251]
[1721287030625,2.90209,3445.8,3445.1,0.07092511]
[1721287031243,2.90204,3445.9,3445.1,0.59517262]
[1721287031547,2.90204,3445.9,3445.2,2.2825]
[1721287031743,1.982,3446.0,3445.2,2.2825]
[1721287032047,1.982,3446.0,3445.3,0.07092511]
[1721287032227,2.902,3445.9,3445.3,0.07092511]
[1721287033547,2.90185,3446.1,3445.3,0.64895537]
[1721287033709,2.90185,3446.1,3445.3,3.55143537]
[1721287034923,7.34,3446.2,3445.3,3.55143537]
[1721287035134,0.55,3446.1,3445.3,3.55143537]
[1721287035323,0.55,3446.1,3445.3,3.48051026]
[1721287035547,0.55,3446.1,3445.5,2.3046]
[1721287035738,1.827375,3446.1,3445.5,2.3046]
[1721287036059,4.729275,3446.1,3445.6,0.07092511]
[1721287036653,4.729275,3446.1,3445.7,0.07092511]
[1721287037062,4.729275,3446.1,3445.5,2.3046]
[1721287037218,0.7631025,3446.0,3445.8,0.07092511]
[1721287037419,0.7631025,3446.0,3445.5,2.3046]
[1721287037615,0.7631025,3446.0,3445.9,0.07080376]
[1721287037832,0.7631025,3446.0,3445.5,2.3046]
[1721287038073,0.7631025,3446.0,3445.9,0.07080376]
[1721287038366,0.7631025,3446.0,3445.5,2.3046]
[1721287038574,0.7631025,3446.0,3445.9,0.07080376]
[1721287038734,0.7631025,3446.0,3445.5,2.3046]
[1721287039059,3.4519,3446.1,3445.5,2.3046]
[1721287039264,3.4519,3446.1,3445.6,0.06883369]
[1721287041739,0.55,3446.1,3445.6,0.06883369]
[1721287041926,0.55,3446.2,3445.6,0.06883369]
[1721287042334,3.55,3446.3,3445.5,5.20693]
[1721287042539,3.55,3446.3,3445.7,0.06876292]
[1721287042840,3.55,3446.3,3445.6,2.90223]
[1721287043039,3.55,3446.3,3445.8,0.06869926]
[1721287043243,7.34,3446.6,3445.9,2.2774]
[1721287043439,7.34,3446.6,3446.0,2.9019]
[1721287043930,7.34,3446.6,3446.1,0.06866556]
[1721287044185,7.34,3446.6,3446.0,2.9019]
[1721287044464,2.90155,3446.5,3446.1,0.06866556]
[1721287045069,2.90155,3446.5,3445.3,3.0]
[1721287045070,2.90185,3446.1,3445.1,2.90264]
[1721287045270,2.90209,3445.8,3445.0,2.90275]
[1721287045443,2.90209,3445.8,3445.2,0.0685948]
[1721287045657,2.90209,3445.8,3445.0,2.90275]
[1721287045844,2.90209,3445.8,3445.3,0.0685948]
[1721287046045,2.90209,3445.8,3445.1,2.90267]
[1721287046396,3.192135,3446.0,3445.2,2.2964]
[1721287046545,0.55,3445.9,3445.3,0.0685948]
[1721287046745,5.27186,3446.5,3445.3,2.9710948]
[1721287046746,10.2417,3446.3,3445.3,2.9710948]
[1721287047057,3.55,3446.2,3445.4,5.22199]
[1721287047459,3.55,3446.2,3445.5,0.06872959]
[1721287048384,6.45176,3446.2,3445.5,0.06872959]
[1721287050291,3.0,3446.2,3445.5,0.06872959]
[1721287050492,2.90183,3446.1,3445.5,0.06872959]
[1721287050643,4.7199963,3446.1,3445.4,2.3196]
[1721287050844,4.7199963,3446.1,3445.6,0.06872959]
[1721287051160,4.7199963,3446.1,3445.7,0.06872959]
[1721287051561,4.7199963,3446.1,3445.8,0.06872959]
[1721287051759,4.7199963,3446.1,3445.4,2.3196]
[1721287052087,4.58656806,3446.0,3445.5,0.06866893]
[1721287052988,2.9021,3445.8,3445.5,0.06866893]
[1721287053161,2.9021,3445.8,3445.4,2.3196]
[1721287053773,2.9021,3445.8,3445.5,0.06866893]
[1721287053999,2.90201,3445.9,3445.5,0.06866893]
[1721287054485,2.90208,3445.8,3445.5,0.06866893]
[1721287055705,2.90217,3445.7,3445.5,0.06866893]
[1721287055909,2.90267,3445.1,3444.5,2.3664]
[1721287056070,2.90286,3444.9,3444.5,2.3664]
[1721287056270,2.90302,3444.7,3444.5,2.3664]
[1721287056473,2.90302,3444.7,3443.8,2.4663]
[1721287056673,0.290302,3444.7,3443.8,2.4663]
[1721287056891,2.90369,3443.9,3443.2,2.4663]
[1721287057562,2.90355,3444.1,3443.2,2.4663]
[1721287057977,2.90361,3444.0,3443.2,5.37056]
[1721287058378,10.24334,3444.4,3443.2,5.37056]
[1721287058579,7.34,3444.4,3443.3,0.537056]
[1721287058774,2.90342,3444.3,3443.5,2.90401]
[1721287059115,2.90361,3444.0,3443.2,2.4663]
[1721287060365,2.90361,3444.0,3443.2,5.37057]
[1721287061215,2.90343,3444.2,3443.2,5.37057]
[1721287061514,2.90343,3444.2,3443.3,1.127501]
[1721287061515,0.55,3444.1,3443.3,1.127501]
[1721287061817,2.9036,3444.0,3443.2,5.37057]
[1721287062819,2.9036,3444.0,3443.3,0.06638703]
[1721287063183,3.45354,3444.1,3443.3,2.97054703]
[1721287063383,2.90354,3444.1,3443.3,2.97054703]
[1721287064211,2.90338,3444.3,3443.4,2.90409]
[1721287064521,0.55,3444.2,3443.5,0.61109981]
[1721287064731,3.45343,3444.2,3443.5,0.61109981]
[1721287064884,0.55,3444.2,3443.5,0.61109981]
[1721287065091,7.34,3444.4,3443.6,3.25544898]
[1721287065287,7.34,3444.4,3443.6,2.90393]
[1721287065486,7.34,3444.4,3443.7,0.06734791]
[1721287065921,10.24327,3444.4,3443.7,0.06734791]
[1721287066095,2.90327,3444.4,3443.7,0.06734791]
[1721287067237,2.90313,3444.6,3443.8,2.2895]
[1721287067417,0.55,3444.5,3443.8,2.2895]
[1721287067617,3.45319,3444.5,3443.9,0.06735465]
[1721287069194,4.11230648,3444.5,3443.9,0.06735465]
[1721287070203,2.90327,3444.4,3443.9,0.06735465]
[1721287071761,2.90345,3444.2,3443.9,0.06735465]
[1721287073619,2.9033,3444.4,3443.9,0.06735465]
[1721287073855,0.55,3444.3,3443.9,0.06735465]
[1721287074666,0.55,3444.4,3443.9,0.06735465]
[1721287076178,1.2146512,3444.4,3443.9,0.06735465]
[1721287076479,4.1179312,3444.4,3443.9,0.06735465]
[1721287079594,3.45328,3444.4,3443.9,0.06735465]
[1721287081693,2.90368,3443.9,3443.4,2.3619]
[1721287081892,0.55,3443.8,3443.4,2.3619]
[1721287082097,0.55,3443.8,3443.5,0.06729395]
[1721287083077,2.90393,3443.6,3443.5,0.06729395]
[1721287083389,3.45393,3443.6,3443.5,0.06729395]
[1721287083568,3.45393,3443.6,3443.0,2.4257]
[1721287083891,0.55,3443.5,3443.0,2.4257]
[1721287084597,3.45403,3443.5,3443.1,0.06734455]
[1721287086272,4.089818,3443.5,3443.1,0.06734455]
[1721287086910,2.90412,3443.4,3443.1,0.06734455]
[1721287090025,2.90427,3443.2,3443.1,0.06734455]
[1721287090170,3.45427,3443.2,3443.1,0.06734455]
[1721287090491,2.90445,3443.0,3442.6,2.4391]
[1721287091359,2.9047,3442.7,3442.0,2.4391]
[1721287091832,5.43652,3442.9,3442.0,2.4391]
[1721287091833,2.90479,3442.6,3442.0,2.4391]
[1721287091999,2.90479,3442.6,3442.0,2.973552]
[1721287092514,2.90479,3442.6,3442.1,0.06314151]
[1721287095399,2.90462,3442.8,3442.1,0.06314151]
[1721287095603,2.90496,3442.4,3442.1,0.06314151]
[1721287096012,3.485943,3442.4,3442.1,0.06314151]
[1721287096325,2.90521,3442.1,3441.5,2.2734]
[1721287099112,2.90489,3442.5,3441.5,2.2734]
[1721287099639,2.90489,3442.5,3441.7,2.90553]
[1721287099937,2.90489,3442.5,3441.8,0.517893]
[1721287100941,1.982,3442.9,3441.9,5.36907]
[1721287101140,3.0,3443.0,3441.9,5.36907]
[1721287101342,3.0,3443.0,3442.0,2.4637]
[1721287101824,2.90444,3443.1,3442.0,2.90527]
[1721287102148,7.34,3443.5,3442.2,2.4149]
[1721287102351,7.34,3444.0,3442.2,2.4149]
[1721287102554,2.90425,3443.3,3442.5,2.90484]
[1721287102705,2.90425,3443.3,3442.6,2.2696]
[1721287102906,2.90425,3443.3,3442.7,6.57987759]
[1721287103110,2.90425,3443.3,3442.6,2.2696]
[1721287103716,0.55,3443.2,3442.6,2.2696]
[1721287104056,3.45427,3443.2,3442.6,2.2696]
[1721287104349,2.90453,3442.9,3442.3,2.2696]
[1721287104966,2.90461,3442.8,3442.3,2.2696]
[1721287107529,2.90461,3442.8,3442.4,0.06343519]
[1721287107718,2.90461,3442.8,3442.3,2.2696]
[1721287108761,2.90445,3443.0,3442.3,2.787085]
[1721287109057,0.55,3442.9,3442.4,0.06343519]
[1721287109620,0.55,3443.1,3442.4,0.06343519]
[1721287109815,3.45436,3443.1,3442.4,0.06343519]
[1721287110012,7.34,3443.3,3442.7,2.90468]
[1721287110216,7.34,3443.3,3442.8,0.809324]
[1721287110430,7.34,3443.3,3442.8,0.87286046]
[1721287110629,3.0,3443.6,3442.8,0.87286046]
[1721287110967,3.0,3443.7,3442.8,0.06353646]
[1721287111119,2.90404,3443.5,3442.6,2.2837]
[1721287111316,0.55,3443.4,3442.6,2.2837]
[1721287111648,0.55,3443.4,3442.7,0.06352296]
[1721287111946,3.4541,3443.4,3442.7,0.06352296]
[1721287112152,3.24961,3443.3,3442.6,2.2837]
[1721287112370,0.55,3443.2,3442.6,2.2837]
[1721287112534,2.90442,3443.1,3442.7,0.06331366]
[1721287112715,0.55,3443.0,3442.7,0.06331366]
[1721287115727,0.55,3443.2,3442.7,0.06331366]
[1721287115934,0.55,3443.4,3442.7,3.78363703]
[1721287116258,0.55,3443.6,3442.7,3.78363703]
[1721287116761,0.55,3443.6,3442.8,2.90458]
[1721287116913,3.45394,3443.6,3442.8,2.90458]
[1721287117117,3.0,3443.5,3442.8,2.90458]
[1721287117353,0.55,3443.4,3442.9,0.06331366]
[1721287117656,0.55,3443.4,3442.8,2.90458]
[1721287117856,0.55,3443.4,3443.0,0.06331366]
[1721287118031,0.55,3443.4,3442.8,2.90458]
[1721287118234,0.55,3443.4,3443.1,0.06331366]
[1721287118442,0.55,3443.4,3442.8,2.90458]
[1721287118739,2.90369,3443.9,3443.3,2.3825]
[1721287118944,1.800519,3443.8,3443.3,2.3825]
[1721287119243,1.800519,3443.8,3443.4,0.06331366]
[1721287122876,7.34,3444.1,3443.4,2.96740366]
[1721287123049,7.34,3444.1,3443.6,2.90392]
[1721287123232,2.90319,3444.5,3443.7,2.3942]
[1721287123451,2.90319,3444.5,3443.7,5.36103313]
[1721287123680,2.90319,3444.5,3443.7,5.29803]
[1721287123978,2.90319,3444.5,3443.8,0.06294577]
[1721287123979,4.217807,3444.5,3443.8,0.06294577]
[1721287124187,4.217807,3444.5,3443.7,5.29803]
[1721287124387,0.55,3444.4,3443.7,5.29803]
[1721287126549,2.532,3444.4,3443.7,2.3942]
[1721287126748,2.9035,3444.2,3443.8,0.06294577]
[1721287126962,0.55,3444.1,3443.3,2.4543]
[1721287127163,0.55,3444.1,3443.9,0.06283105]
[1721287127368,0.55,3444.1,3443.3,2.4543]
[1721287127685,0.55,3444.1,3444.0,0.06283105]
[1721287127842,1.20541617,3444.1,3443.3,2.4543]
[1721287128036,0.55,3444.1,3443.3,2.4543]
[1721287128238,0.55,3444.1,3443.4,2.96692105]
[1721287129458,3.45351,3444.1,3443.4,2.96692105]
[1721287130266,2.90362,3444.0,3443.4,0.06283105]
[1721287130542,0.55,3443.9,3443.4,0.06283105]
[1721287132980,3.45369,3443.9,3443.4,0.06283105]
[1721287134357,3.45369,3443.9,3443.4,0.60497015]
[1721287135166,3.45369,3443.9,3443.4,0.06283105]
[1721287136358,2.90381,3443.8,3443.4,0.06283105]
[1721287136554,0.55,3443.7,3443.4,0.06283105]
[1721287137860,3.45385,3443.7,3443.4,0.06283105]
[1721287138197,3.45385,3443.7,3443.0,2.2865]
[1721287138397,3.45385,3443.7,3443.5,0.06264885]
[1721287138553,4.089604,3443.7,3443.5,0.06264885]
[1721287138900,4.089604,3443.7,3443.0,2.2865]
[1721287139058,3.45385,3443.7,3443.6,0.06264885]
[1721287139253,3.45385,3443.7,3443.0,2.2865]
[1721287139459,3.45385,3443.7,3443.6,0.06264885]
[1721287139682,3.45385,3443.7,3443.0,2.2865]
[1721287140219,3.45385,3443.7,3443.1,0.06264885]
[1721287142105,2.90369,3443.9,3443.1,0.58801574]
[1721287142257,0.55,3443.8,3443.2,2.3303]
[1721287142460,0.55,3443.8,3443.2,5.23456]
[1721287142789,2.9036,3444.0,3443.3,0.06264885]
[1721287142971,0.55,3443.9,3443.3,0.06264885]
[1721287143698,0.55,3443.9,3443.4,2.2703]
[1721287143907,3.45353,3444.1,3443.4,2.2703]
[1721287144109,2.9036,3444.0,3443.5,0.06263873]
[1721287144268,0.55,3443.9,3443.5,0.06263873]
[1721287146801,0.55,3444.0,3443.5,0.06263873]
[1721287147000,0.55,3444.0,3443.6,0.52371187]
[1721287147609,0.55,3444.0,3443.6,0.58634385]
[1721287149272,0.55,3444.0,3443.6,0.06263198]
[1721287149706,0.55,3444.0,3443.4,5.1744]
[1721287149917,0.55,3444.0,3443.7,0.06263198]
[1721287150114,0.55,3444.0,3443.4,5.1744]
[1721287150326,0.55,3444.0,3443.8,0.06263198]
[1721287150478,1.629351,3444.0,3443.4,5.1744]
[1721287151052,1.629351,3444.0,3443.5,0.06246669]
[1721287151313,0.55,3444.0,3443.5,0.06246669]
[1721287152521,3.4536,3444.0,3443.5,0.06246669]
[1721287153598,2.9038,3443.8,3443.5,0.06246669]
[1721287153806,2.9038,3443.8,3443.0,2.2913]
[1721287153807,0.55,3443.7,3443.0,2.2913]
[1721287154011,3.45385,3443.7,3443.6,0.06246669]
[1721287154181,3.45385,3443.7,3443.0,2.2913]
[1721287154386,3.45385,3443.7,3443.6,0.06246669]
[1721287154615,3.45385,3443.7,3443.0,2.2913]
[1721287154824,3.45385,3443.7,3443.6,0.06246669]
[1721287154999,3.45385,3443.7,3443.0,2.2913]
[1721287155187,3.45385,3443.7,3443.6,0.06246669]
[1721287155387,3.78452341,3443.7,3443.0,2.2913]
[1721287155626,3.45385,3443.7,3443.6,0.06246669]
[1721287155823,3.45385,3443.7,3443.0,2.2913]
[1721287156001,3.45385,3443.7,3443.6,0.06246669]
[1721287156321,2.90395,3443.6,3443.0,2.2913]
[1721287160399,0.55,3443.5,3443.0,2.2913]
[1721287161218,0.55,3443.5,3443.0,3.101351]
[1721287161417,7.34,3444.1,3443.0,3.101351]
[1721287161418,7.34,3444.1,3443.1,2.285]
[1721287161618,0.55,3444.0,3442.7,2.88824553]
[1721287161929,3.4536,3444.0,3443.4,2.2902]
[1721287162598,2.90369,3443.9,3443.4,2.2902]
[1721287162798,3.539402,3443.9,3443.4,2.2902]
[1721287163044,0.55,3443.8,3442.9,2.3379]
[1721287163199,2.90402,3443.5,3442.9,2.3379]
[1721287163395,3.45412,3443.4,3442.9,2.3379]
[1721287164223,2.90421,3443.3,3442.9,2.3379]
[1721287164544,0.55,3443.2,3442.9,2.3379]
[1721287167535,0.55,3443.2,3442.9,2.57169]
[1721287167743,2.90385,3443.7,3443.0,0.06255776]
[1721287167904,6.35794,3443.6,3442.9,2.3379]
[1721287168104,6.35794,3443.6,3443.0,0.06255776]
[1721287169317,0.55,3443.6,3443.1,2.3479]
[1721287169504,3.55,3443.7,3443.1,2.3479]
[1721287170046,3.55,3443.7,3443.2,0.06255776]
[1721287170446,3.55,3443.7,3443.1,2.3479]
[1721287171441,3.55,3443.7,3443.2,0.06255776]
[1721287173743,4.485738,3443.7,3443.2,0.06255776]
[1721287173962,7.389588,3443.7,3443.2,0.06255776]
[1721287174143,3.45385,3443.7,3443.2,0.06255776]
[1721287176760,2.90419,3443.3,3443.2,0.06255776]
[1721287177046,2.90436,3443.1,3442.7,2.4633]
[1721287177549,3.45445,3443.0,3442.7,2.4633]
[1721287178241,3.45445,3443.0,3442.3,2.373]
[1721287180365,2.90454,3442.9,3442.3,2.373]
[1721287180521,0.55,3442.8,3442.3,2.373]
[1721287181130,0.55,3443.0,3442.3,2.373]
[1721287181434,3.45447,3443.0,3442.3,3.25165955]
[1721287182359,0.55,3443.0,3442.3,6.15666955]
[1721287182745,0.55,3443.1,3442.4,0.06075107]
[1721287183055,0.55,3443.1,3442.6,2.90476]
[1721287183375,0.55,3443.2,3442.7,0.06075107]
[1721287183537,0.55,3443.2,3442.8,2.32]
[1721287183741,0.55,3443.4,3442.8,2.32]
[1721287184125,0.55,3443.4,3442.9,0.06075107]
[1721287184126,3.45413,3443.4,3442.9,0.06075107]
[1721287184321,3.45413,3443.4,3442.8,2.32]
[1721287184827,3.45413,3443.4,3442.9,0.06082867]
[1721287185135,3.45413,3443.4,3442.8,2.32]
[1721287185367,0.55,3443.4,3442.8,2.32]
[1721287185671,3.55,3443.5,3442.9,0.06082867]
[1721287186823,6.45405,3443.5,3442.9,0.06082867]
[1721287187029,8.123833,3443.5,3442.9,0.06082867]
[1721287189761,6.45405,3443.5,3442.9,0.06082867]
[1721287191633,2.9041,3443.4,3442.9,0.06082867]
[1721287191933,3.45419,3443.3,3442.8,2.32]
[1721287192149,3.45419,3443.3,3443.0,0.06082867]
[1721287192368,2.90436,3443.1,3442.4,5.19186]
[1721287192536,0.55,3443.0,3442.4,5.19186]
[1721287192944,0.55,3443.0,3442.2,2.90507]